Workbook

Sheet Amended Market Basket Evaluatio
D1: Attachment I Amendment #1
D2: COST PROPOSAL - 5400028525
D3: Section 2: Market Basket Evaluation
D4: Rescue & Public Protection Equipment
A6: ADDITIONAL INSTRUCTION:
A7: 1. Offeror must complete all required fields B, C, E-G, (fields in a Green highlight) on this Cost Proposal. The format and structure of the Cost Proposal is intended to allow for a fair market basket type evaluation of like cost amount Offerors. Deviation from the format or structure of this Cost Proposal may result in Offeror's Proposal being deemed non-responsive.
A8: 2. We have provided a description of each product in the market basket as well as a representative brand and model as an example. Offerors do NOT have to bid the representative brand and model, they are provided as a way to set a level of quality and to clarify the product description. Offered products must be equal in quality and possess the same fit, form and function of the example product.
A9: 3. Offeror is wholly responsible for ensuring figures and calculations submitted in Offeror's completed Cost proposal as accurate, even if formulas have been provided by the Lead State as a courtesy.
A10: 4. Quantiles for each line item is one (1) of the line item as described unless specified as Case (CS), Pack (PK) or Kit (KT), Square Foot (SQ FT), Foot (FT),Bag (BG), Drum (DR), Pair (PR) or Set (ST)
A11: 5. The "TOTAL PRICE FOR CATEGORY #" will automatically calculate, the "Extended Price" for each line item WILL NOT.
A13: Category # | B13: Manufacturer' Name | C13: Manufacturer's Part Number | D13: Description | E13: List Price | F13: Minimum Discount % Off | G13: Extended Price
B14: Category 1 Rescue Equipment
A15: 1 | B15: TACTICAL ELECTRONICS | C15: TK03TBTK01TN | D15: Tactical Bomb Tech Kit essential tools including WASSP, Multimeter, RIP Kit 1st Line and Drill with battery. EXAMPLE: Tactical Electronics TK03TBK01TN | E15: 9,254.24 | F15: 41% | G15: =ROUND(E15*(1-F15),2) -> $5,460.00
A16: 2 | B16: TACTICAL ELECTRONICS | C16: SP02WSPP10BL | D16: Wire Attack Special Piercer Probes (WASPP Kit) 10 lead. EXAMPLE: Tactical Electronics SP02WSPP10BL | E16: 2,516.95 | F16: 41% | G16: =ROUND(E16*(1-F16),2) -> $1,485.00
A17: 3 | B17: ZODIAC OF NORTH AMERICA | C17: N10181 | D17: Inflatable Boat, 15'5" length and Beam 6'3" hull weight 327 lbs. and capacity of 10 persons, maximum power 65L hp. Military grade with capabilities of helidrop/airdrop. EXAMPLE: Zodiac of North America ZDO N10181 | E17: 43,512.03 | F17: 41% | G17: $25,672.10
A18: 4 | B18: Rock-N-Rescue by J.E. Weinel Inc | C18: O60101-RED-300 | D18: 1" Tube Nylon Red x 300ft spool. EXAMPLE: Rock N Rescue RNR O60101 Red 300 | E18: 237.27 | F18: 41% | G18: $139.99
A19: 5 | B19: TELEDYNE FLIR COMMERCIAL SYSTEMS INC | C19: 7TM-01-F330 | D19: Thermal Monocular 640x480 12um 60Hz 25mm 18°. EXAMPLE: Teledyne Flir Commercial System FLIR 7TM 01 F330 | E19: 5,861.02 | F19: 41% | G19: $3,458.00
A20: 6 | B20: CMC Rescue Inc. | C20: 294029 | D20: Protection for rescue rope with canvas and vinyl coated polyester with a guard to keep it in place. EXAMPLE: CMC Rescue Inc. CMC 294029 | E20: 80.96 | F20: 41% | G20: $47.77
A21: 7 | B21: CMC Rescue Inc. | C21: 441103 | D21: Heavy duty water resistant rescue dry bag with multiple pockets shoulder straps and waist belt adjuster. EXAMPLE: CMC Rescue Inc. CMC 441103 | E21: 381.06 | F21: 41% | G21: $224.83
A22: 8 | B22: AIR SYSTEMS INTERNATIONAL | C22: MACK-3 | D22: Portable Multi-Air Commander Kit for first responders Air distribution for breathing, filling and rescue application. Must meet NFPA Requirements. EXAMPLE: Air System International Air Mack 3 | E22: 6,080.51 | F22: 41% | G22: $3,587.50
A23: 9 | B23: AVON PROTECTION SYSTEMS, INC | C23: 70501-697-7 | D23: Single Mask air purifying respirator provides specialist operators maximum level of protection to the face eyes and respiratory tract. Flexible single lens visor, high flow hydration systems 6 point fire hardened skull cap and full range of filters. EXAMPLE: Avon Protection Systems Inc. AVO 70501 697 7 | E23: 1,775.11 | F23: 41% | G23: $1,047.31
A24: 10 | B24: Enerpac | C24: ECSE300B | D24: Jaw's of Life Cutters 11.81 in Max Blade Aperture HRC 41, 5.17 ton spreading force Power cutter spreader combination tools have an electric motor that power a radial pump to drive the hydraulic cylinder. Their blades cut cleaning through metal. EXAMPLE: ECSE300B 845HZ5 | E24: 16,470.08 | F24: 41% | G24: =ROUND(E24*(1-F24),2) -> $9,717.35
B25: TOTAL PRICE FOR CATEGORY 1 Rescue Equipment | G25: =SUM(G15:G24) -> $50,839.85
B26: Category 2 Hazmat Equipment
A27: 1 | B27: Blackline Safety | C27: ER-SX-G7C-P-DFOV-NA2-5Y | D27: Multi-Gas Pump gas detector for confine spaces to check for leaks. EXAMPLE: Blackline Safety ER SX G7C P DFOV NA2 5Y | E27: 8,720.66 | F27: 41% | G27: =ROUND(E27*(1-F27),2) -> $5,145.19
A28: 2 | B28: Blackline Safety | C28: ER-SX-G7C-Q-DFOV-NA2-5Y | D28: Personal Gas Detention Device with two way communication and location technology. EXAMPLE: Blackline Safety ER SX GRC Q DFOV NA2 5Y | E28: 7,878.10 | F28: 41% | G28: =ROUND(E28*(1-F28),2) -> $4,648.08
A29: 3 | B29: Bridgehill AS | C29: 101252 | D29: Car Standard Fire Blanket for single use for fire suppression 6" x 26' 2". EXAMPLE: Bridgehill AS 101251 | E29: 2,108.00 | F29: 41% | G29: $1,243.72
A30: 4 | B30: Blauer Mfg Co. Inc. | C30: RWZ9435AG-LG-R | D30: Suit with gloves to protect against CBRN threat encompassing liquid and vapor. EXAMPLE: Blauer MFG Co BLR RWZ9435AG | E30: 3,379.24 | F30: 41% | G30: $1,993.75
A31: 5 | B31: Teledyne FLIR Defense (Detection) | C31: R225-LGN | D31: Personal Radiation compact Detector 18mm cubic CSl detector utilizing SiPM technology Compliance with ANSI N42.48SPRD. EXAMPLE: Teledyne FLIR R225 LGN | E31: 14,500.00 | F31: 41% | G31: $8,555.00
A32: 6 | B32: RAE Systems Inc | C32: M020-11111-111 | D32: Multigas Monitor Pumped & Accessories Kit - provides detection and monitoring of Oxygen, combustibles and toxic gasses that include Carbon Monoxide Hydrogen Sulfide Sulfur Dioxide and Hydrogen Cyanide. EXAMPLE: RAE System M020 11111 111 | E32: 1,779.83 | F32: 41% | G32: $1,050.10
A33: 7 | B33: ACME UNITED CORP | C33: 91354 | D33: First Aid Standard Disposable Emergency Blankets 40" x 84" EXAMPLE: MS-44100 | E33: 2.70 | F33: 41% | G33: $1.59
A34: 8 | B34: RAE Systems Inc | C34: C03-0942-000 | D34: Oxygen O2 sensor maintaining awareness of oxygen levels. EXAMPLE: RAE Systems C03-0942-000 | E34: 428.64 | F34: 41% | G34: $252.90
A35: 9 | B35: FireCraft Safety Products | C35: 906-FC000-08 | D35: Combustible gas leak detector hand held instrument natural gas methane or propane gas leaks. EXAMPLE: FireCraft Safety Products 906 FC000 08 | E35: 912.04 | F35: 41% | G35: $538.10
A36: 10 | B36: FireCraft Safety Products | C36: 907-FC000-01 | D36: Advance Instrument for detecting gas leaks to measure combustible gases and other volatile organic compounds. EXAMPLE: Fire Craft Safety Products 907 FC000 01 | E36: 1,646.41 | F36: 41% | G36: $971.38
B37: TOTAL PRICE FOR CATEGORY 2 Hazmat Equipment | G37: =SUM(G27:G36) -> $24,399.81
B38: Category 3 Intervention Equipment
A39: 1 | B39: Zeptive, Inc. | C39: ZVD2200 | D39: Vape Detector- Wired, Multiple Gas Detection. EXAMPLE: Zeptive MDL ZVD2200 | E39: 1,303.39 | F39: 41% | G39: =ROUND(E39*(1-F39),2) -> $769.00
A40: 2 | B40: 3M | C40: 3M-SECURITY-ULTRA-S800 | D40: Security Window Film, 3800 SF, Multi-layered, Optically Clear, Tear-Resistant. EXAMPLE: 3M Scotchshield S800 | E40: 19.93 | F40: 41% | G40: =ROUND(E40*(1-F40),2) -> $11.76
A41: 3 | B41: WINDOW FILM DEPOT INC | C41: WETGLAZE ATTACHMENT SYSTEM | D41: Security Window Film Attachment System. EXAMPLE: 3M Attachment System | E41: 9.49 | F41: 41% | G41: $5.60
A42: 4 | B42: CEIA USA LTD | C42: 108960-LTE | D42: Weapon Detection System, Relocatable Bollards, Battery or Wall Outlet Power Supply. EXAMPLE: Opengate 108960 LTE | E42: 31,372.67 | F42: 41% | G42: $18,509.88
A43: 5 | B43: CEIA USA LTD | C43: 109444BU4 | D43: Stabilizing Plate for Weapon Detection System. EXAMPLE: Opengate 109444BU | E43: 914.00 | F43: 41% | G43: $539.26
A44: 6 | B44: CEIA USA LTD | C44: MSD | D44: Magneto Static Detector, Portable, 360 Degree Detection. EXAMPLE: CEIA MSD | E44: 14,046.87 | F44: 41% | G44: $8,287.65
A45: 7 | B45: CEIA USA LTD | C45: 120876 | D45: Transport Kit for Weapon Detection System. EXAMPLE: CEIA 120876 | E45: 2,510.99 | F45: 41% | G45: $1,481.48
A46: 8 | B46: CEIA USA LTD | C46: PD240-SET | D46: Hand Held, Rechargeable Metal Detector, Indoor/Outdoor Use. EXAMPLE CEIA PD240-SET | E46: 539.02 | F46: 41% | G46: $318.02
A47: 9 | B47: TACTICAL ELECTRONICS | C47: CR03TACK01BL | D47: Tactical Camera, Adjustable Pole, Under Door Camera Head. EXAMPLE: Core Tactical Kit CR03TACK01BL | E47: 31,025.42 | F47: 41% | G47: $18,305.00
A48: 10 | B48: 3M Occupational Health & Safety | C48: MT14H41A-300NA GE | D48: Headset, Tactical, Omni-Directonal Microphones. EXAMPLE: 3M Peltor ComTac MT14H41A-300NA GE | E48: 1,589.48 | F48: 41% | G48: $937.79
B49: TOTAL PRICE FOR CATEGORY 3 Intervention Equipment | G49: =SUM(G38:G48) -> $49,165.44
B50: Category 4 Decontamination Equipment
A51: 1 | B51: Blackline Safety | C51: J-EX8N-01-NA2-000000-OXXX-3Y-XXX-3Y | D51: Area Gas Monitor, Rechargeable, Wireless Gas Monitoring. EXAMPLE: Blackline G7 EXO | E51: 9,646.72 | F51: 41% | G51: =ROUND(E51*(1-F51),2) -> $5,691.56
A52: 2 | B52: Kappler | C52: Z5H583 OR 2X/3X | D52: Encapsulating Hazmat Suit, Level A, Orange, Size 2X/3X. EXAMPLE: Zytron Z5H583 | E52: 1,924.47 | F52: 41% | G52: =ROUND(E52*(1-F52),2) -> $1,135.44
A53: 3 | B53: Kappler | C53: Z5H583 OR LG/XL | D53: Encapsulating Hazmat Suit, Level A, Orange, Size L/XL. EXAMPLE: Zytron Z5H583 | E53: 1,749.52 | F53: 41% | G53: $1,032.22
A54: 4 | B54: First Line Technology, LLC | C54: FBT-PAD-12X12-50 | D54: Wipe/Pad, Dry Decontamination, 12x12, Non-Reactive, Non-Abrasive, Non-Shedding, Active, 50 Per Case. EXAMPLE: Fibertect FBT-PAD | E54: 1,652.54 | F54: 41% | G54: $975.00
A55: 5 | B55: Team Wendy | C55: 73-R3-22S-E22 | D55: Ballistic Helmet, Lightweight, NIJ Level III, NVG Mount, Accessory Mounting System, Size XL. EXAMPLE: Team Wendy Exfil Ballistic | E55: 2,438.51 | F55: 41% | G55: $1,438.72
A56: 6 | B56: Team Wendy | C56: 73-R3-21S-E21 | D56: Ballistic Helmet, Lightweight, NIJ Level III, NVG Mount, Accessory Mounting System, Size M/L. EXAMPLE: Team Wendy Exfil Ballistic | E56: 2,438.51 | F56: 41% | G56: $1,438.72
A57: 7 | B57: Avon Protection Systems, Inc | C57: 72850-14 | D57: Respirator, Air Purifying, Single Lens Visor, Hydration System, Protection from CBRN. EXAMPLE: Avon FM54 | E57: 1,445.97 | F57: 41% | G57: $853.12
B58: Avon Protection Systems, Inc | C58: 70501-187 | D58: Gas Mask, Tactical Full-Face, Accessories Carrier, Cannister Configuration, Size L. EXAMPLE: Avon C50 Twin | E58: 783.58 | F58: 41% | G58: $462.31
A59: 9 | B59: Serstech AB | C59: ARX003-NEH-SK1 | D59: Raman Spectrometer, Hand Held, Bar Code Reader, Autofocus, 3.5" Display (Minimum), USB/Wi-Fi Connection, One Demo Library. EXAMPLE: Serstech Arx Raman Spectrometer ARX-003 | E59: 67,091.02 | F59: 41% | G59: $39,583.70
A60: 10 | B60: Industrial Scientific | C60: 18109156 | D60: Cylinder, Calibration Gas, Hydrogen Sulfide, 25 PPM, 58L. EXAMPLE: Industrial Scientific ISC 18109156 | E60: 450.00 | F60: 41% | G60: $265.50
B61: TOTAL PRICE FOR CATEGORY 4 Decontamination Equipment | G61: =SUM(G51:G60) -> $52,876.29

Sheet Products Discount % Off Eval
A1: Attachment I Amendment #1
A2: COST PROPOSAL - 5400028525
A3: Discount % Off Evaluation
A4: Rescue & Public Protection Equipment
A5: Additional Instructions:
A6: 1. Offeror must complete all required fields (Fields in blue highlight) "D" & "F" are optional fields on this Cost Proposal. The Format and structure of the Cost Proposal is intended to allow for a fair discount % off type evaluation of like costs among offerors. Deviation from the format or structure of this Cost Proposal may result in Offeror's proposal being deemed non-responsive.
A7: 2. It has been determined that the best pricing structure for this portion of the evaluation is a simple "percentage off" of the most current dated Supplier's suggested government, commercial catalog, or price list. Suppliers can submit actual pricing schedule for their equipment with the percentage discount already figured, as long as the Supplier list price is stated first, then the discount, then the final price. You will have to keep it updated as pricing changes occur.
A8: 3. Within the tables, if you have different discounts for different brands/models/sizes of products or options, you WILL have to list the items separately. If you need more space insert additional lines as necessary.
A10: Category# | E10: Offered Minimum Discount % Off
A11: 1 | B11: Rescue Equipment | C11: Hard type value ONLY if offering a single % off entire category -- > | E11: 41% off Safeware Catalog List Price for Products 10% off Safeware Catalog List Price for Services and Training
B12: Brand Name / Model | C12: Price Book/Catalog date of Manufacturers Current published retail price list | D12: List Price | E12: Minimum Discount % Off | F12: Extended Price
B26: Insert additional lines if needed
E27: Offered Minimum Discount % Off
A28: 2 | B28: HazMat Equipment | C28: Hard type value ONLY if offering a single % off entire category -- > | E28: 41% off Safeware Catalog List Price for Products 10% off Safeware Catalog List Price for Services and Training
B29: Brand Name / Model | C29: Price Book/Catalog date of Manufacturers Current published retail price list | D29: List Price | E29: Minimum Discount % Off | F29: Extended Price
B43: Insert additional lines if needed
E44: Offered Minimum Discount % Off
A45: 3 | B45: Intervention Equipment | C45: Hard type value ONLY if offering a single % off entire category -- > | E45: 41% off Safeware Catalog List Price for Products 10% off Safeware Catalog List Price for Services and Training
B46: Brand Name / Model | C46: Price Book/Catalog date of Manufacturers Current published retail price list | D46: List Price | E46: Minimum Discount % Off | F46: Extended Price
B60: Insert additional lines if needed
E61: Offered Minimum Discount % Off
A62: 4 | B62: Decontamination Equipment | C62: Hard type value ONLY if offering a single % off entire category -- > | E62: 41% off Safeware Catalog List Price for Products 10% off Safeware Catalog List Price for Services and Training
B63: Brand Name / Model | C63: Price Book/Catalog date of Manufacturers Current published retail price list | D63: List Price | E63: Minimum Discount % Off | F63: Extended Price
B77: Insert additional lines if needed

Sheet Product Volume Discount
A1: Attachment I Amendment #1
A2: COST PROPOSAL - 5400028525
A3: Volume Discount % off Evaluation
A4: Rescue & Public Protection Equipment Volume Discount Cost Evaluation and Contract Offering
A6: Additional Instructions:
A7: Within the tables, list the volume discounts you intend to provide under the resulting contract award. If you need more space, insert additional lines as necessary. Light Blue highlighted cells signify a requested vendor input.
A9: Category#
A10: 1 | B10: Volume Discount -Rescue Equipment
A11: Brand Name / Model | B11: Price Book/Catalog date of Manufacturers Current published retail price list | C11: Minimum Quantity for Volume Discount | D11: Volume Discount % Off
B12: Safeware Catalog | C12: Any line item totalling $20,000.00 or more | D12: 42% off Products
B13: Safeware Catalog | C13: Any line item totalling $50,000.00 or more | D13: 43% off Products
B14: Safeware Catalog | C14: Any line item totalling $100,000.00 or more | D14: 44% off Products
A15: Insert additional lines if needed
A17: 2 | B17: Volume Discount - Hazmat Equipment
A18: Brand Name / Model | B18: Price Book/Catalog date of Manufacturers Current published retail price list | C18: Minimum Quantity for Volume Discount | D18: Volume Discount % Off
B19: Safeware Catalog | C19: Any line item totalling $20,000.00 or more | D19: 42% off Products
B20: Safeware Catalog | C20: Any line item totalling $50,000.00 or more | D20: 43% off Products
B21: Safeware Catalog | C21: Any line item totalling $100,000.00 or more | D21: 44% off Products
A23: Insert additional lines if needed
A25: 3 | B25: Volume Discount -Intervention Equipment
A26: Brand Name / Model | B26: Price Book/Catalog date of Manufacturers Current published retail price list | C26: Minimum Quantity for Volume Discount | D26: Volume Discount % Off
B27: Safeware Catalog | C27: Any line item totalling $20,000.00 or more | D27: 42% off Products
B28: Safeware Catalog | C28: Any line item totalling $50,000.00 or more | D28: 43% off Products
B29: Safeware Catalog | C29: Any line item totalling $100,000.00 or more | D29: 44% off Products
A31: Insert additional lines if needed
A33: 4 | B33: Volume Discount - Decontamination Equipment
A34: Brand Name / Model | B34: Price Book/Catalog date of Manufacturers Current published retail price list | C34: Minimum Quantity for Volume Discount | D34: Volume Discount % Off
B35: Safeware Catalog | C35: Any line item totalling $20,000.00 or more | D35: 42% off Products
B36: Safeware Catalog | C36: Any line item totalling $50,000.00 or more | D36: 43% off Products
B37: Safeware Catalog | C37: Any line item totalling $100,000.00 or more | D37: 44% off Products
A39: Insert additional lines if needed
